[Event "MCR zen 2022"]
[Site "Hotel Opera, Jaroměřice nad Rokytnou, Czech Republic"]
[Date "????.??.??"]
[Round "1.5"]
[White "Richterova, Natasa"]
[Black "Zelbova, Lada"]
[Result "1-0"]
[TimeControl "90 min/40 moves + 30 min + 30s/move"]
[WhiteElo "2181"]
[BlackElo "1967"]

1. e4 {[%clk 01:30:58]} {[%emt 00:00:02]} c5 {[%clk 01:30:51]} {[%emt
00:00:09]} 2. Nf3 {[%clk 01:31:20]} {[%emt 00:00:08]} d6 {[%clk 01:31:15]}
{[%emt 00:00:07]} 3. Bb5+ {[%clk 01:31:45]} {[%emt 00:00:05]} Nd7 {[%clk
01:31:39]} {[%emt 00:00:05]} 4. O-O {[%clk 01:32:00]} {[%emt 00:00:15]} a6
{[%clk 01:32:02]} {[%emt 00:00:07]} 5. Bxd7+ {[%clk 01:31:55]} {[%emt
00:00:35]} Bxd7 {[%clk 01:32:23]} {[%emt 00:00:09]} 6. Re1 {[%clk 01:31:11]}
{[%emt 00:01:14]} e5 {[%clk 01:31:45]} {[%emt 00:01:08]} 7. c3 {[%clk
01:30:03]} {[%emt 00:01:39]} Qc7 {[%clk 01:23:00]} {[%emt 00:09:14]} 8. d4
{[%clk 01:30:21]} {[%emt 00:00:12]} Nf6 {[%clk 01:21:56]} {[%emt 00:01:33]} 9.
Bg5 {[%clk 01:30:23]} {[%emt 00:00:28]} Be7 {[%clk 01:21:26]} {[%emt 00:01:00]}
10. h3 {[%clk 01:29:24]} {[%emt 00:01:30]} Rd8 {[%clk 01:18:48]} {[%emt
00:03:08]} 11. Qe2 {[%clk 01:28:39]} {[%emt 00:01:16]} O-O {[%clk 01:18:17]}
{[%emt 00:01:00]} 12. dxe5 {[%clk 01:27:35]} {[%emt 00:01:34]} dxe5 {[%clk
01:18:34]} {[%emt 00:00:13]} 13. c4 {[%clk 01:27:55]} {[%emt 00:00:10]} Bc6
{[%clk 01:11:39]} {[%emt 00:07:25]} 14. Nc3 {[%clk 01:28:15]} {[%emt 00:00:10]}
Nh5 {[%clk 01:01:25]} {[%emt 00:10:44]} 15. Nd5 {[%clk 01:22:20]} {[%emt
00:06:25]} Bxd5 {[%clk 00:59:41]} {[%emt 00:02:14]} 16. exd5 {[%clk 01:15:32]}
{[%emt 00:07:18]} Bxg5 {[%clk 00:57:49]} {[%emt 00:02:22]} 17. Nxg5 {[%clk
01:15:54]} {[%emt 00:00:08]} Nf4 {[%clk 00:57:41]} {[%emt 00:00:38]} 18. Qe4
{[%clk 01:12:16]} {[%emt 00:04:09]} Ng6 {[%clk 00:56:55]} {[%emt 00:01:16]} 19.
h4 {[%clk 01:09:14]} {[%emt 00:03:32]} h6 {[%clk 00:41:54]} {[%emt 00:15:31]}
20. h5 {[%clk 01:03:57]} {[%emt 00:05:46]} hxg5 {[%clk 00:39:59]} {[%emt
00:02:26]} 21. hxg6 {[%clk 01:04:12]} {[%emt 00:00:16]} Rde8 {[%clk 00:40:04]}
{[%emt 00:00:24]} 22. gxf7+ {[%clk 01:03:51]} {[%emt 00:00:51]} Qxf7 {[%clk
00:40:24]} {[%emt 00:00:09]} 23. Qe3 {[%clk 01:03:17]} {[%emt 00:01:04]} Qf4
{[%clk 00:30:36]} {[%emt 00:10:18]} 24. Rac1 {[%clk 00:56:41]} {[%emt
00:07:07]} Rf6 {[%clk 00:23:02]} {[%emt 00:08:04]} 25. g3 {[%clk 00:55:24]}
{[%emt 00:01:47]} Qf5 {[%clk 00:21:14]} {[%emt 00:02:18]} 26. Re2 {[%clk
00:51:01]} {[%emt 00:04:53]} Rh6 {[%clk 00:17:56]} {[%emt 00:03:47]} 27. Qe4
{[%clk 00:51:17]} {[%emt 00:00:15]} Qh3 {[%clk 00:17:21]} {[%emt 00:01:05]} 28.
Qg2 {[%clk 00:51:38]} {[%emt 00:00:09]} Qg4 {[%clk 00:15:38]} {[%emt 00:02:13]}
29. Re4 {[%clk 00:51:47]} {[%emt 00:00:21]} Qf5 {[%clk 00:15:38]} {[%emt
00:00:30]} 30. Rc3 {[%clk 00:46:56]} {[%emt 00:05:21]} g4 {[%clk 00:08:57]}
{[%emt 00:07:11]} 31. Rce3 {[%clk 00:45:13]} {[%emt 00:02:14]} Rh5 {[%clk
00:07:25]} {[%emt 00:02:02]} 32. f3 {[%clk 00:42:43]} {[%emt 00:03:00]} gxf3
{[%clk 00:07:11]} {[%emt 00:00:44]} 33. Qxf3 {[%clk 00:42:29]} {[%emt
00:00:44]} Rf8 {[%clk 00:03:02]} {[%emt 00:04:40]} 34. Qxf5 {[%clk 00:42:43]}
{[%emt 00:00:16]} Rhxf5 {[%clk 00:03:27]} {[%emt 00:00:04]} 35. Re2 {[%clk
00:42:25]} {[%emt 00:00:48]} Re8 {[%clk 00:01:35]} {[%emt 00:02:22]} 36. Kg2
{[%clk 00:42:13]} {[%emt 00:00:41]} g5 {[%clk 00:01:19]} {[%emt 00:00:46]} 37.
Kh3 {[%clk 00:28:47]} {[%emt 00:13:56]} Kf7 {[%clk 00:01:37]} {[%emt 00:00:11]}
38. Kg4 {[%clk 00:29:04]} {[%emt 00:00:14]} Kg6 {[%clk 00:01:33]} {[%emt
00:00:34]} 39. R4e3 {[%clk 00:29:27]} {[%emt 00:00:07]} Re7 {[%clk 00:01:37]}
{[%emt 00:00:26]} 40. d6 {[%clk 00:29:07]} {[%emt 00:00:50]} Rd7 {[%clk
00:01:34]} {[%emt 00:00:33]} 41. Rxe5 {[%clk 00:29:32]} {[%emt 00:00:05]} Rxd6
{[%clk 00:25:04]} {[%emt 00:07:00]} 42. Rxf5 {[%clk 00:56:55]} {[%emt
00:03:07]} Rd4+ {[%clk 00:24:58]} {[%emt 00:00:35]} 43. Rf4 {[%clk 00:57:24]}
{[%emt 00:00:01]} gxf4 {[%clk 00:25:15]} {[%emt 00:00:12]} 44. gxf4 {[%clk
00:57:48]} {[%emt 00:00:07]} Rxc4 {[%clk 00:23:23]} {[%emt 00:02:22]} 45. Re6+
{[%clk 00:58:03]} {[%emt 00:00:15]} Kf7 {[%clk 00:17:45]} {[%emt 00:06:07]} 46.
Rb6 {[%clk 00:58:15]} {[%emt 00:00:18]} Rc2 {[%clk 00:16:38]} {[%emt 00:01:37]}
47. Kf5 {[%clk 00:57:20]} {[%emt 00:01:25]} c4 {[%clk 00:13:59]} {[%emt
00:03:10]} 48. Rxb7+ {[%clk 00:57:43]} {[%emt 00:00:08]} Kg8 {[%clk 00:10:46]}
{[%emt 00:03:42]} 49. Kg6 {[%clk 00:55:16]} {[%emt 00:02:57]} Rg2+ {[%clk
00:11:07]} {[%emt 00:00:10]} 50. Kf6 {[%clk 00:55:45]} {[%emt 00:00:01]} Rc2
{[%clk 00:09:53]} {[%emt 00:01:43]} 51. Rb8+ {[%clk 00:51:22]} {[%emt
00:04:54]} Kh7 {[%clk 00:10:11]} {[%emt 00:00:12]} 52. b3 {[%clk 00:51:47]}
{[%emt 00:00:05]} Rb2 {[%clk 00:07:11]} {[%emt 00:03:30]} 53. Rb7+ {[%clk
00:39:39]} {[%emt 00:12:38]} Kh6 {[%clk 00:07:17]} {[%emt 00:00:23]} 54. Rb4
{[%clk 00:34:26]} {[%emt 00:05:44]} c3 {[%clk 00:06:02]} {[%emt 00:01:45]} 55.
f5 {[%clk 00:33:47]} {[%emt 00:01:10]} Kh5 {[%clk 00:04:20]} {[%emt 00:02:11]}
56. Rc4 {[%clk 00:34:04]} {[%emt 00:00:13]} Rxa2 {[%clk 00:03:09]} {[%emt
00:01:41]} 57. Rxc3 {[%clk 00:34:29]} {[%emt 00:00:06]} Rf2 {[%clk 00:02:46]}
{[%emt 00:00:52]} 58. Rc4 {[%clk 00:30:35]} {[%emt 00:04:24]} Rf3 {[%clk
00:01:58]} {[%emt 00:01:18]} 59. Rb4 {[%clk 00:29:56]} {[%emt 00:01:09]} a5
{[%clk 00:01:06]} {[%emt 00:01:23]} 60. Rb5 {[%clk 00:30:21]} {[%emt 00:00:05]}
Kh6 {[%clk 00:01:08]} {[%emt 00:00:28]} 61. Rb8 {[%clk 00:30:06]} {[%emt
00:00:46]} Kh7 {[%clk 00:01:02]} {[%emt 00:00:36]} 62. Rb5 {[%clk 00:29:02]}
{[%emt 00:01:35]} Kg8 {[%clk 00:01:14]} {[%emt 00:00:18]} 63. Ke6 {[%clk
00:28:41]} {[%emt 00:00:50]} Re3+ {[%clk 00:01:30]} {[%emt 00:00:15]} 64. Kd6
{[%clk 00:29:02]} {[%emt 00:00:09]} Rf3 {[%clk 00:01:21]} {[%emt 00:00:38]} 65.
Kc6 {[%clk 00:27:08]} {[%emt 00:02:24]} Kf7 {[%clk 00:00:57]} {[%emt 00:00:54]}
66. Kb6 {[%clk 00:27:28]} {[%emt 00:00:10]} Kf6 {[%clk 00:00:43]} {[%emt
00:00:44]} 67. Kxa5 {[%clk 00:27:51]} {[%emt 00:00:07]} Ke7 {[%clk 00:00:56]}
{[%emt 00:00:17]} 68. b4 {[%clk 00:28:07]} {[%emt 00:00:14]} Kd7 {[%clk
00:00:52]} {[%emt 00:00:33]} 69. Rc5 {[%clk 00:28:31]} {[%emt 00:00:07]} Rf4
{[%clk 00:00:47]} {[%emt 00:00:35]} 70. b5 {[%clk 00:28:31]} {[%emt 00:00:29]}
Rd4 {[%clk 00:00:38]} {[%emt 00:00:40]} 71. Rc6 {[%clk 00:28:46]} {[%emt
00:00:14]} Rd5 {[%clk 00:00:43]} {[%emt 00:00:26]} 72. f6 {[%clk 00:29:07]}
{[%emt 00:00:08]} Rf5 {[%clk 00:00:51]} {[%emt 00:00:22]} 73. Kb6 {[%clk
00:29:00]} {[%emt 00:00:38]} Kd8 {[%clk 00:00:56]} {[%emt 00:00:24]} 74. Rd6+
{[%clk 00:28:59]} {[%emt 00:00:31]} Kc8 {[%clk 00:01:17]} {[%emt 00:00:09]} 75.
Kc6 {[%clk 00:29:23]} {[%emt 00:00:05]} Rf1 {[%clk 00:01:17]} {[%emt 00:00:30]}
76. b6 {[%clk 00:29:31]} {[%emt 00:00:21]} Rc1+ {[%clk 00:01:30]} {[%emt
00:00:17]} 77. Kd5 {[%clk 00:29:53]} {[%emt 00:00:09]} Re1 {[%clk 00:01:29]}
{[%emt 00:00:31]} 78. f7 {[%clk 00:30:02]} {[%emt 00:00:21]} Rf1 {[%clk
00:01:12]} {[%emt 00:00:47]} 79. Ke6 {[%clk 00:30:26]} {[%emt 00:00:06]} Re1+
{[%clk 00:00:47]} {[%emt 00:00:56]} 80. Kf6 {[%clk 00:30:47]} {[%emt 00:00:08]}
Rf1+ {[%clk 00:00:47]} {[%emt 00:00:30]} 81. Ke7 {[%emt 00:00:30]} 1-0